Cogmind - Beta 11.1 @@@ ROGUE MODE // 2022.09.28 @ 15:42:03 Player: lumberblack Result: System corrupted Performance ------------- Evolutions (3) 1500 Regions Visited (7) 1400 Robots Destroyed (42) 210 Value Destroyed (681) 681 Prototype IDs (26) 520 Alien Tech Used (0) 0 Bonus (96) 96 TOTAL SCORE: 4407 Bonus ------- Follower Combat Kills 60 Aligned with FarCom 300 Friendly Fire -264 Cogmind --------- Core Integrity 0/700 Matter 226/300 Energy 100/100 System Corruption 101% Temperature Cool (0) Movement Core (50) Location -7/Waste Parts ------- > --- POWER (1) -------- (None) > --- PROPULSION (4) --- (None) > --- UTILITY (6) ------ (None) > --- WEAPON (2) ------- (None) > --- INVENTORY (5) ---- Light Angular Momentum Engine Graphene Brace Missile Launcher Peak State ------------ > --- POWER ------------ (None) > --- PROPULSION ------- Heavy Treads > --- UTILITY ---------- Army-in-a-Box > --- WEAPON ----------- (None) > --- INVENTORY -------- Light Angular Momentum Engine Graphene Brace Missile Launcher [Rating: 67] Favorites ----------- Power Light Angular Momentum Engine Engine Light Angular Momentum Engine Reactor Antimatter Reactor Propulsion Light Treads Treads Light Treads Leg Carbon-fiber Leg Wheel Wheel Flight Unit Improved VTOL Module Utility Large Storage Unit Device Improved Sensor Array Storage Large Storage Unit Processor Machine Analyzer Protection Hardened Medium Armor Plating Weapon Mini Grenade Launcher Energy Gun Advanced Beam Rifle Ballistic Gun Light Assault Rifle Ballistic Cannon Heavy Assault Cannon Launcher Mini Grenade Launcher Impact Weapon Heavy Mace Slashing Weapon Katana Build | -11 -10 -10 -10 -9 -8 -7 -7 ------- Run | Scr Mat Min Exi Min Mat Fac Was Slots Evolved 6 | . . . . . 4 2 . Power . | . . . . . . . . Propulsion 2 | . . . . . 2 . . Utility 4 | . . . . . 2 2 . Weapon . | . . . . . . . . Parts Attached 85 | 2 . 5 5 12 46 4 11 Power 4 | . . . 1 . 2 . 1 Engine 3 | . . . 1 . 2 . . Core . | . . . . . . . . Reactor 1 | . . . . . . . 1 Propulsion 21 | 2 . . . 5 8 1 5 Treads 16 | 2 . . . 2 6 1 5 Leg 2 | . . . . 2 . . . Wheel 1 | . . . . 1 . . . Hover . | . . . . . . . . Flight 2 | . . . . . 2 . . Utility 23 | . . 1 3 1 13 2 3 Device 7 | . . 1 . . 3 1 2 Storage 6 | . . . 2 1 3 . . Processor 6 | . . . . . 6 . . Hackware . | . . . . . . . . Protection 4 | . . . 1 . 1 1 1 Artifact . | . . . . . . . . Weapon 37 | . . 4 1 6 23 1 2 Energy Gun 17 | . . . . 2 14 . 1 Energy Cannon . | . . . . . . . . Ballistic Gun . | . . . . . . . . Ballistic Cannon 2 | . . . . . . 1 1 Launcher 8 | . . 2 1 1 4 . . Special Weapon . | . . . . . . . . Impact Weapon 5 | . . 2 . 1 2 . . Slashing Weapon 5 | . . . . 2 3 . . Piercing Weapon . | . . . . . . . . Special Melee Weapon . | . . . . . . . . Unidentified Prototypes 3 | . . . . . 3 . . Corrupted Parts 3 | . . . . . 2 . 1 System Corruption 7 | . . . . . 3 . 4 Parts Lost 9 | . . . . . 1 . 8 Power . | . . . . . . . . Propulsion 3 | . . . . . . . 3 Utility 5 | . . . . . 1 . 4 Weapon 1 | . . . . . . . 1 Highest Loss Streak 6 | . . . . . 1 . 6 To Critical Strikes 2 | . . . . . . . 2 Average Slot Usage (%) 81 | . 57 48 73 98 83 90 27 Engine 8 | . . . 5 14 5 7 . Treads 23 | . 28 28 28 26 20 30 9 Wheel 2 | . . . . 1 7 . . Device 1 | . . . . . 2 10 6 Storage 10 | . . . 12 14 11 7 2 Processor 2 | . . . . . 9 11 2 Protection 9 | . . . 5 14 9 7 2 Energy Gun 3 | . 14 4 . 1 9 12 . Launcher 7 | . . . 7 13 3 . . Impact Weapon 2 | . . 9 14 . . . . Slashing Weapon 6 | . . . . 11 3 . . Naked Turns 185 | . . . . . . . 185 Heaviest Build 80 | 2 2 3 36 46 65 63 80 Greatest Support 114 | 40 40 3 40 40 84 84 114 Greatest Overweight (x) 26 | . . . 4 4 6 . 26 Average Overweight (x) 1 | . . . . 2 2 . . Largest Inventory Capacity 15 | 8 5 5 10 15 15 15 15 Average Capacity 12 | 5 5 5 8 14 14 15 7 Most Carried 15 | 8 3 5 10 14 15 15 15 Average Carried 10 | 2 3 4 5 11 14 14 6 Final Capacity 15 | 5 5 5 10 15 15 15 5 Final Carried 15 | 3 3 5 10 12 15 15 3 Class Distribution -------------------- 87% | Mutant 8% | Scavenger-Mutant 3% | Scavenger-Skirmisher Dominant Class ---------------- Mutant | -10/Materials Mutant | -10/Mines Mutant | -10/Exiles Mutant | -9/Mines Mutant | -8/Materials Scavenger-Skirmisher | -7/Factory Mutant | -7/Waste Resources | -11 -10 -10 -10 -9 -8 -7 -7 ----------- Run | Scr Mat Min Exi Min Mat Fac Was Matter Collected 1859 | 181 . 472 50 126 617 56 357 Remotely . | . . . . . . . . Salvage Created 1445 | 14 . 123 . 69 584 56 599 Parts 69 | 1 . 13 . 13 35 1 6 Haulers Intercepted 2 | . . . . . 2 . . Recyclers Shooed 1 | . . 1 . . . . . Parts Field Recycled . | . . . . . . . . Retrieved Matter . | . . . . . . . . Parts Self-Destructed . | . . . . . . . . Prevented . | . . . . . . . . Kills | -11 -10 -10 -10 -9 -8 -7 -7 ------- Run | Scr Mat Min Exi Min Mat Fac Was Combat Hostiles Destroyed 25 | . . 7 . 3 12 . 3 Melee 1 | . . 1 . . . . . Guns 5 | . . . . . 4 . 1 Cannons 2 | . . . . . . . 2 AOE 16 | . . 6 . 3 7 . . Classes Destroyed 13 | 1 . 3 . 2 5 1 1 Worker 3 | . . 1 . . 2 . . Builder 3 | . . . . 2 1 . . Tunneler 3 | 1 . 2 . . . . . Hauler 2 | . . . . . 2 . . Recycler 1 | . . . . . . 1 . Mechanic 1 | . . . . . 1 . . Watcher 2 | . . . . . 2 . . Swarmer 16 | . . 6 . 3 7 . . Grunt 3 | . . 1 . . 2 . . Sentry 2 | . . . . . 2 . . Heavy 1 | . . . . . 1 . . Compactor 3 | . . . . . . . 3 Zionite 1 | . . . . 1 . . . Thug 1 | . . . . 1 . . . Best Kill Streak 9 | 1 . 4 . 3 9 1 2 Combat Bots Only 6 | . . 3 . 3 6 . 2 Max Kills in Single Turn 4 | 1 . 3 . 3 4 1 1 Gunslinging . | . . . . . . . . Exploded 3 | . . 3 . 3 3 . . Melee 1 | . . 1 . . . . . Uniques/NPCs Destroyed . | . . . . . . . . Combat | -11 -10 -10 -10 -9 -8 -7 -7 -------- Run | Scr Mat Min Exi Min Mat Fac Was Damage Taken 4117 | . 6 178 . 220 417 . 3296 Core 630 | . . 70 . 83 64 . 413 Absorbed by Shields 246 | . . . . . 36 . 210 Reduced by Siege Mode 37 | . . . . . . . 37 Regen/Repaired (Parts) 227 | . . . . . 227 . . Core Remaining (%) 75 | 100 . . . 38 88 . . Volleys Fired 64 | 2 . 7 . 1 13 2 39 Largest 2 | 2 . 2 . 1 2 2 1 Hottest 122 | 60 . 60 . 36 122 122 60 Shots Fired 116 | 4 . 12 . 1 53 4 42 Gun 67 | 4 . 10 . . 44 4 5 Cannon 37 | . . . . . . . 37 Launcher 12 | . . 2 . 1 9 . . Special . | . . . . . . . . Kinetic 44 | 2 . 5 . . . . 37 Thermal 56 | 2 . 5 . . 40 4 5 Explosive 12 | . . 2 . 1 9 . . Electromagnetic 4 | . . . . . 4 . . Robot Hit Streak 20 | 1 . 6 . . 15 2 20 Robot Miss Streak 4 | 1 . 1 . . 2 1 4 Penetration Max . | . . . . . . . . Secondary Targets . | . . . . . . . . Autonomous 31 | . . . . . 25 . 6 Shots Hit Robots 94 | 2 . 14 . 5 35 2 36 Core Hits 44 | 1 . 10 . 3 20 1 9 Critical Kills . | . . . . . . . . Critical Parts Destroyed . | . . . . . . . . Critical Strikes 3 | . . . . . 2 . 1 Burn 1 | . . . . . 1 . . Blast 1 | . . . . . . . 1 Corrupt 1 | . . . . . 1 . . Melee Attacks 30 | . . 10 . 15 5 . . Impact 13 | . . 10 . . 3 . . Slashing 17 | . . . . 15 2 . . Piercing . | . . . . . . . . Sneak Attacks 9 | . . 3 . 5 1 . . Combat Hostiles . | . . . . . . . . Follow-up Attacks . | . . . . . . . . Damage Inflicted 4745 | 23 . 807 . 554 1443 40 1878 Guns 1051 | 23 . 81 . . 795 40 112 Cannons 1673 | . . . . . . . 1673 Explosions 1148 | . . 345 . 215 588 . . Melee 777 | . . 381 . 336 60 . . Ramming 96 | . . . . 3 . . 93 Kinetic 1699 | . . 26 . . . . 1673 Thermal 973 | 23 . 55 . . 743 40 112 Explosive 1148 | . . 345 . 215 588 . . Electromagnetic 52 | . . . . . 52 . . Impact 381 | . . 381 . . . . . Slashing 396 | . . . . 336 60 . . Piercing . | . . . . . . . . Highest Corruption 101 | . . . . . 7 . 101 Average Corruption 29 | . . . . . 5 . 53 Corruption Purged . | . . . . . . . . Corruption Blocked . | . . . . . . . . Effects 65 | . . . . . 20 . 45 Message Errors 19 | . . . . . 3 . 16 Matter Fused 22 | . . . . . 9 . 13 Heat Flow Errors 4 | . . . . . 1 . 3 Energy Discharges 8 | . . . . . 2 . 6 Data Loss (minor) 5 | . . . . . 2 . 3 Data Loss (major) 1 | . . . . . . . 1 Misfires 3 | . . . . . 3 . . Misdirections 1 | . . . . . . . 1 Weapon Failures 2 | . . . . . . . 2 Overload Shots . | . . . . . . . . Overflow Damage 428 | . . 175 . 163 90 . . Projectiles . | . . . . . . . . Explosions 120 | . . 50 . . 70 . . Melee 308 | . . 125 . 163 20 . . Knockbacks 1 | . . 1 . . . . . Impact 1 | . . 1 . . . . . Kinetic . | . . . . . . . . Secondary . | . . . . . . . . Self-Inflicted Damage 22 | . . . . . . . 22 Shots . | . . . . . . . . Rammed 20 | . . . . 2 . . 18 Targets Rammed 20 | . . . . 2 . . 18 Kicked . | . . . . . . . . Crushed . | . . . . . . . . Highest Temperature 631 | 20 . 19 . 10 221 138 631 Average Temperature 143 | 12 . 10 . 7 54 72 211 Received Heat Transfer 127 | . . 90 . . 24 . 13 Effects 13 | . . . . . . . 13 Shutdowns 2 | . . . . . . . 2 Energy Bleed 2 | . . . . . . . 2 Interference 4 | . . . . . . . 4 Matter Decay 1 | . . . . . . . 1 Damage (minor) 1 | . . . . . . . 1 Damage (major) 3 | . . . . . . . 3 Siege Activations 1 | . . . . . . . 1 Total Turns 61 | . . . . . . . 61 Longest Duration 61 | . . . . . . . 61 Robots Corrupted . | . . . . . . . . Combat Hostiles . | . . . . . . . . Parts Fried 4 | . . 4 . . . . . Impact Corruptions 5 | . . 4 . . . . 1 Robots Melted 1 | . . . . . 1 . . Combat Hostiles 1 | . . . . . 1 . . Parts Melted 3 | . . . . . 2 1 . Heat Transferred 1507 | 50 . 125 . . 1110 74 148 Parts Sabotaged . | . . . . . . . . Parts Stolen . | . . . . . . . . Parts Stripped . | . . . . . . . . Power Chain Reactions . | . . . . . . . . Missiles Intercepted . | . . . . . . . . Alert | -11 -10 -10 -10 -9 -8 -7 -7 ------- Run | Scr Mat Min Exi Min Mat Fac Was Peak Influence 281 | 5 3 188 . 106 281 56 23 Initial 51 | . 3 . . . 5 51 19 Average 43 | 2 3 84 . 13 130 52 4 Maximum Alert Level 1 | . . . . . 1 . . Low Security (%) 96 | 100 100 100 . 100 80 100 100 Level 1 3 | . . . . . 19 . . Level 2 . | . . . . . . . . Level 3 . | . . . . . . . . Level 4 . | . . . . . . . . Level 5 . | . . . . . . . . High Security . | . . . . . . . . Max Security . | . . . . . . . . Squads Dispatched 4 | . . 1 . . 2 1 . Investigation 1 | . . 1 . . . . . Extermination 1 | . . . . . . 1 . Reinforcement 2 | . . . . . 2 . . Assault . | . . . . . . . . Garrison . | . . . . . . . . Intercept . | . . . . . . . . Searches Triggered . | . . . . . . . . Construction Impeded . | . . . . . . . . Haulers Reinforced . | . . . . . . . . Active Scanning Responses . | . . . . . . . . Cargo Convoy Interrupts . | . . . . . . . . Stealth | -11 -10 -10 -10 -9 -8 -7 -7 --------- Run | Scr Mat Min Exi Min Mat Fac Was Distress Signals 1 | . . . . . 1 . . Communications Jammed . | . . . . . . . . Distress Signals . | . . . . . . . . Times Spotted 43 | . 2 14 . . 20 . 7 Peak Tracking Total 4 | . 4 4 . . 4 1 2 Tactical Retreats 4 | . . 2 . . . . 2 Traps | -11 -10 -10 -10 -9 -8 -7 -7 ------- Run | Scr Mat Min Exi Min Mat Fac Was Traps Triggered 1 | . . . . . . 1 . Indirectly . | . . . . . . . . Trap Hack Attempts . | . . . . . . . . Triggered . | . . . . . . . . Disarmed . | . . . . . . . . Reprogrammed . | . . . . . . . . Reused . | . . . . . . . . Traps Extracted . | . . . . . . . . Installed . | . . . . . . . . Triggered 2 | . . . . 2 . . . Machines | -11 -10 -10 -10 -9 -8 -7 -7 ---------- Run | Scr Mat Min Exi Min Mat Fac Was Machines Disabled 1 | . . . . . 1 . . Max in Single Turn 1 | . . . . . 1 . . Machines Sabotaged . | . . . . . . . . Garrisons Compromised . | . . . . . . . . Overloaded Fab Kills . | . . . . . . . . Hacking | -11 -10 -10 -10 -9 -8 -7 -7 --------- Run | Scr Mat Min Exi Min Mat Fac Was Machines Accessed 9 | . . 2 1 . 5 1 . Terminals 5 | . . 1 . . 4 . . Fabricators . | . . . . . . . . Repair Stations 2 | . . . . . 1 1 . Recycling Units . | . . . . . . . . Scanalyzers . | . . . . . . . . Garrison Access . | . . . . . . . . Total Hacks 19 | . . 3 1 . 14 1 . Successful 8 | . . 2 1 . 5 . . Failed 11 | . . 1 . . 9 1 . Catastrophic 1 | . . . . . 1 . . Database Lockouts . | . . . . . . . . Manual 12 | . . 2 1 . 9 . . Terminals 13 | . . 2 . . 11 . . Fabricators . | . . . . . . . . Repair Stations 4 | . . . . . 3 1 . Recycling Units . | . . . . . . . . Scanalyzers . | . . . . . . . . Garrison Access . | . . . . . . . . Terminal Hacks 5 | . . 2 1 . 2 . . Robot Analysis 1 | . . 1 . . . . . Open Door 1 | . . 1 . . . . . Locate Traps 1 | . . . . . 1 . . Hauler Manifests 1 | . . . . . 1 . . EX-Prototype ID Bank 1 | . . . 1 . . . . Fabricator Hacks . | . . . . . . . . Repair Station Hacks 3 | . . . . . 3 . . Scan Component 2 | . . . . . 2 . . Repair 1 | . . . . . 1 . . Recycling Unit Hacks . | . . . . . . . . Scanalyzer . | . . . . . . . . Garrison Access Hacks . | . . . . . . . . Unauthorized Hacks . | . . . . . . . . Terminals . | . . . . . . . . Fabricators . | . . . . . . . . Repair Stations . | . . . . . . . . Recycling Units . | . . . . . . . . Scanalyzers . | . . . . . . . . Garrison Access . | . . . . . . . . Data Cores Recovered . | . . . . . . . . Used . | . . . . . . . . Hacking Detections 7 | . . 1 . . 5 1 . Full Trace Events . | . . . . . . . . Feedback Events . | . . . . . . . . Feedback Blocked . | . . . . . . . . Robot Schematics Acquired . | . . . . . . . . Robots Built . | . . . . . . . . Authchips . | . . . . . . . . Time . | . . . . . . . . Total Robot Build Rating . | . . . . . . . . Part Schematics Acquired . | . . . . . . . . Parts Built . | . . . . . . . . Authchips . | . . . . . . . . Time . | . . . . . . . . Total Part Build Rating . | . . . . . . . . Parts Repaired 1 | . . . . . 1 . . Time 26 | . . . . . 26 . . Parts Recycled . | . . . . . . . . Recycled Matter . | . . . . . . . . Retrieved Matter . | . . . . . . . . Retrieved Components . | . . . . . . . . Parts Scanalyzed . | . . . . . . . . Part Schematics Acquired . | . . . . . . . . Parts Damaged . | . . . . . . . . Bothacking | -11 -10 -10 -10 -9 -8 -7 -7 ------------ Run | Scr Mat Min Exi Min Mat Fac Was Used RIF Installer . | . . . . . . . . Robots Hacked . | . . . . . . . . Non-combat . | . . . . . . . . Combat . | . . . . . . . . Robot Hacks Applied . | . . . . . . . . Relay Couplers Released . | . . . . . . . . Fabnet Peak Effective % . | . . . . . . . . Robots Rewired . | . . . . . . . . Allies Hacked . | . . . . . . . . Hacks Repelled . | . . . . . . . . Allies | -11 -10 -10 -10 -9 -8 -7 -7 -------- Run | Scr Mat Min Exi Min Mat Fac Was Total Allies 3 | . . 1 . 2 . . . Largest Group 2 | . . 1 1 2 . . . Highest-Rated Group 45 | . . 31 31 45 . . . Highest-Rated Ally 31 | . . 31 31 31 . . . Total Orders . | . . . . . . . . Ally Attacks 33 | . . . . . . . 33 Total Damage 1465 | . . . . . . . 1465 Kills 6 | . . . . . . . 6 Allies Corrupted 16 | . . . . . . . 16 Allies Melted . | . . . . . . . . Intel | -11 -10 -10 -10 -9 -8 -7 -7 ------- Run | Scr Mat Min Exi Min Mat Fac Was Robot Analysis Total 1 | . . 1 . . . . . Derelict Logs Recovered 4 | . . 2 . 2 . . . Drone Launches 31 | . . . . . . . 31 Drone Recoveries 1 | . . . . . . . 1 Exploration | -11 -10 -10 -10 -9 -8 -7 -7 ------------- Run | Scr Mat Min Exi Min Mat Fac Was Turns Passed 8464 | 38 45 738 561 4259 1604 304 915 Spaces Moved 3220 | 16 83 869 496 523 617 181 435 Core 1621 | . 80 869 316 . . . 356 Treads 864 | 16 3 . 180 232 173 181 79 Legs . | . . . . . . . . Wheels 735 | . . . . 291 444 . . Hover . | . . . . . . . . Flight . | . . . . . . . . Fastest Speed 50 | 160 50 50 50 125 110 155 50 Average Speed 111 | 160 53 50 111 165 144 156 114 Slowest Speed 1350 | 160 160 50 250 320 170 157 1350 Overloaded Moves . | . . . . . . . . Propulsion Burnouts . | . . . . . . . . Robots Hopped . | . . . . . . . . Cave-ins Triggered 1 | . . . . 1 . . . Exploration Rate (%) 47 | 2 19 99 70 79 35 7 69 Regions Visited 7 Branch Regions 3 Pre-discovered Areas 1 | . . 1 . . . . . Known Exits Taken 1 | . . . . . 1 . . Unknown Exits Taken 5 | 1 1 1 1 1 . . . Scrap Searched 5 | . . 2 . 3 . . . Spaces Dug 59 | . . 34 . 22 3 . . Terrain Destroyed 122 | . . 34 . 22 61 . 5 Melee 14 | . . 1 . 10 3 . . Projectile 11 | . . . . . 6 . 5 AOE 97 | . . 33 . 12 52 . . Terrain Rammed 16 | . . . . . . . 16 Walls Destroyed . | . . . . . . . . Machines Disabled . | . . . . . . . . Actions | -11 -10 -10 -10 -9 -8 -7 -7 --------- Run | Scr Mat Min Exi Min Mat Fac Was Total 7744 | 29 82 1148 503 3895 1304 201 582 Wait 4169 | . . 236 . 3325 562 2 44 Move 3214 | 15 82 868 495 522 616 181 435 Hop . | . . . . . . . . Pick Up 54 | 1 . 10 2 7 24 6 4 Fast Attach 39 | . . 2 2 5 23 2 5 Attach 30 | 2 . 1 3 3 13 2 6 Detach 12 | 3 . 1 . . 6 . 2 Swap 16 | . . 2 . 4 10 . . Drop 81 | 6 . 11 1 11 33 6 13 Fire 64 | 2 . 7 . 1 13 2 39 Melee 29 | . . 10 . 15 4 . . Ram 16 | . . . . . . . 16 Kick . | . . . . . . . . Crush 20 | . . . . 2 . . 18 Escape Stasis . | . . . . . . . . Rewire . | . . . . . . . . Trap . | . . . . . . . . Miscellaneous . | . . . . . . . . Route ------- -11/Scrapyard -10/Materials -10/Mines (discovered 3 exits: [*Mat x2] / *Exi) -10/Exiles -9/Mines -8/Materials (discovered 2 exits: *Fac x2) -7/Factory -7/Waste History --------- Turn | Location | Event 8 | -11/Scrapyard | Discovered new exit (range 2) 39 | -11/Scrapyard | Entered Materials 71 | -10/Materials | Discovered new exit (range 9) 84 | -10/Materials | Entered Mines 94 | -10/Mines | Deemed a non-threat by the Exiles lab entrance 96 | -10/Mines | Discovered new exit (range 5) 305 | -10/Mines | Build established: Mutant 331 | -10/Mines | Met a Derelict shopkeep closing up shop 447 | -10/Mines | Discovered new exit (range 16) 459 | -10/Mines | Found a hidden stash of uninstalled traps 520 | -10/Mines | Learned Materials garrison access intel 595 | -10/Mines | Discovered new exit (range 5) 651 | -10/Mines | Learned location of Recycling (-7) 703 | -10/Mines | Received a Mining Laser from a helpful Derelict 822 | -10/Mines | Entered Exiles 822 | -10/Exiles | Accompanied by 1 ally 835 | -10/Exiles | Met 8R-AWN 842 | -10/Exiles | Met EX-HEX 861 | -10/Exiles | Met EX-BIN 866 | -10/Exiles | Aligned with FarCom system 867 | -10/Exiles | Given EX-Vault access code 878 | -10/Exiles | Opened EX-Vault 889 | -10/Exiles | Warned to stay clear of 0b10 Research branches 904 | -10/Exiles | Met EX-DEC 1225 | -10/Exiles | Found Army-in-a-Box 1235 | -10/Exiles | Found AWS/Thermal 1371 | -10/Exiles | Discovered new exit (range 10) 1383 | -10/Exiles | Stole two prototypes: Army-in-a-Box, AWS/Thermal 1383 | -10/Exiles | Entered Mines 1433 | -9/Mines | Learned Materials terminal intel 1541 | -9/Mines | Learned location of 1 exit from Materials 1647 | -9/Mines | Assembled infested the area 5101 | -9/Mines | Crushed by falling debris 5101 | -9/Mines | Core integrity fell below 50% 5362 | -9/Mines | A weapon hastily lodged in a ceiling crevice suddenly fell to the ground 5612 | -9/Mines | Discovered new exit (range 14) 5642 | -9/Mines | Entered Materials 5642 | -8/Materials | Evolved 4 slots: Propulsion x2, Utility x2 5643 | -8/Materials | Identified exit to Factory 5644 | -8/Materials | Loaded intel: 12 terminal locations 5645 | -8/Materials | Loaded intel: 1 garrison access location 5714 | -8/Materials | Repaired Lrg. Storage Unit 6660 | -8/Materials | Discovered exit to Factory (range 11) 7246 | -8/Materials | Entered Factory 7246 | -7/Factory | Evolved 2 slots: Utility x2 7248 | -7/Factory | FarCom data flow suspended 7550 | -7/Factory | Sucked down chute 7550 | -7/Factory | Entered Waste 7565 | -7/Waste | EMP discharged 7578 | -7/Waste | Spotted C-40 Crusher 7587 | -7/Waste | Destroyed C-40 Crusher 7592 | -7/Waste | Spotted C-40 Crusher 7603 | -7/Waste | Destroyed C-40 Crusher 7626 | -7/Waste | Found Damper Plating 7665 | -7/Waste | EMP discharged 7665 | -7/Waste | System corruption reached 10% 7681 | -7/Waste | Spotted C-40 Crusher 7718 | -7/Waste | Spotted C-40 Crusher 7729 | -7/Waste | Crushed by Compactor (0 parts destroyed, 1 dropped) 7731 | -7/Waste | Build established: Scavenger-Mutant 7732 | -7/Waste | Crushed by Compactor (0 parts destroyed, 1 dropped) 7732 | -7/Waste | Destroyed C-40 Crusher 7752 | -7/Waste | Crushed by Compactor (1 part destroyed) 7765 | -7/Waste | EMP discharged 7776 | -7/Waste | Crushed by Compactor (0 parts destroyed, 1 dropped) 7803 | -7/Waste | Crushed by Compactor (0 parts destroyed, 1 dropped) 7815 | -7/Waste | Crushed by Compactor (1 part destroyed) 7817 | -7/Waste | System corruption reached 30% 7818 | -7/Waste | Crushed by Compactor (0 parts destroyed, 1 dropped) 7822 | -7/Waste | Spotted C-40 Crusher 7834 | -7/Waste | Allies destroyed C-40 Crusher 7835 | -7/Waste | Allies destroyed C-40 Crusher 7846 | -7/Waste | Lost 6 parts (2n3u1w) 7865 | -7/Waste | EMP discharged 7965 | -7/Waste | EMP discharged 8053 | -7/Waste | Core integrity fell below 50% 8065 | -7/Waste | EMP discharged 8087 | -7/Waste | Build established: Mutant 8151 | -7/Waste | Spotted C-40 Crusher 8165 | -7/Waste | EMP discharged 8265 | -7/Waste | EMP discharged 8365 | -7/Waste | EMP discharged 8465 | -7/Waste | EMP discharged 8466 | -7/Waste | System corrupted Last Messages --------------- 08265_ System corrupted (+7). 08272_ Broken Hvy. Treads destroyed. 08281_ Critical hit (Destroy). 08281_ Broken Army-in-a-Box destroyed. 08282_ System corrupted: Matter fused (-8). 08297_ System corrupted: Energy discharge (-31). 08314_ System corrupted: Matter fused (-6). 08319_ Acquired 5 matter. 08346_ D8 RC>WYWX9T8